[Event "Chess Festival Groningen 2023 | A"]
[Site "Groningen, Netherlands"]
[Date "2023.12.22"]
[Round "2.4"]
[White "Stremavicius, Titas"]
[Black "Elgersma, Onno"]
[Result "1/2-1/2"]
[TimeControl "90min/40moves + 30min + 30sec/move"]
[WhiteElo "2550"]
[BlackElo "2310"]

1. Nf3 {[%clk 01:30:43]} {[%emt 00:00:18]} d5 {[%clk 01:30:36]} {[%emt
00:00:22]} 2. g3 {[%clk 01:31:04]} {[%emt 00:00:39]} Nf6 {[%clk 01:30:39]}
{[%emt 00:00:09]} 3. Bg2 {[%clk 01:31:25]} {[%emt 00:00:04]} e6 {[%clk
01:30:55]} {[%emt 00:00:35]} 4. O-O {[%clk 01:31:45]} {[%emt 00:00:09]} Be7
{[%clk 01:31:20]} 5. d4 {[%clk 01:31:25]} {[%emt 00:00:45]} O-O {[%clk
01:31:42]} 6. c4 {[%clk 01:31:49]} {[%emt 00:00:38]} dxc4 {[%clk 01:32:02]} 7.
Qc2 {[%clk 01:32:11]} a6 {[%clk 01:28:25]} {[%emt 00:03:43]} 8. a4 {[%clk
01:32:29]} {[%emt 00:00:12]} Bd7 {[%clk 01:28:24]} {[%emt 00:00:37]} 9. Rd1
{[%clk 01:30:18]} {[%emt 00:03:08]} Bc6 {[%clk 01:27:52]} {[%emt 00:01:07]} 10.
Nc3 {[%clk 01:30:40]} Bxf3 {[%clk 01:26:25]} {[%emt 00:01:26]} 11. Bxf3 {[%clk
01:31:01]} {[%emt 00:00:37]} Nc6 {[%clk 01:26:51]} 12. Bxc6 {[%clk 01:31:20]}
bxc6 {[%clk 01:27:16]} {[%emt 00:00:05]} 13. a5 {[%clk 01:31:44]} Rb8 {[%clk
01:20:05]} {[%emt 00:07:36]} 14. Ra4 {[%clk 01:31:53]} {[%emt 00:00:25]} Rb4
{[%clk 01:14:26]} {[%emt 00:06:03]} 15. Na2 {[%clk 01:32:13]} {[%emt 00:00:32]}
Rb5 {[%clk 01:04:13]} {[%emt 00:10:22]} 16. Rxc4 {[%clk 01:06:17]} {[%emt
00:26:24]} Rxa5 {[%clk 00:56:44]} {[%emt 00:08:03]} 17. Bd2 {[%clk 01:06:31]}
{[%emt 00:00:14]} Rh5 {[%clk 00:49:29]} {[%emt 00:07:43]} 18. Rxc6 {[%clk
00:47:06]} {[%emt 00:19:58]} Qd5 {[%clk 00:41:22]} {[%emt 00:08:34]} 19. Bb4
{[%clk 00:31:11]} {[%emt 00:16:25]} Ng4 {[%clk 00:24:32]} {[%emt 00:17:20]} 20.
e4 {[%clk 00:26:20]} {[%emt 00:05:21]} Qxa2 {[%clk 00:24:47]} {[%emt 00:00:32]}
21. Bxe7 {[%clk 00:26:42]} Rxh2 {[%clk 00:22:21]} {[%emt 00:02:46]} 22. Rf1
{[%clk 00:10:15]} {[%emt 00:16:57]} Ne3 {[%clk 00:08:16]} {[%emt 00:14:38]} 23.
Qe2 {[%clk 00:10:34]} {[%emt 00:00:09]} Nxf1 {[%clk 00:07:29]} {[%emt
00:01:16]} 24. Qxf1 {[%clk 00:10:58]} {[%emt 00:00:30]} Rh5 {[%clk 00:06:48]}
{[%emt 00:00:51]} 25. Bxf8 {[%clk 00:11:19]} {[%emt 00:00:08]} Kxf8 {[%clk
00:07:13]} {[%emt 00:00:09]} 26. Qc1 {[%clk 00:10:15]} {[%emt 00:01:29]} Qb3
{[%clk 00:04:08]} {[%emt 00:03:34]} 27. Rxa6 {[%clk 00:01:05]} {[%emt
00:09:39]} Qf3 {[%clk 00:02:43]} {[%emt 00:01:55]} 28. Ra8+ {[%clk 00:01:30]}
{[%emt 00:00:38]} Ke7 {[%clk 00:03:10]} 29. Qxc7+ {[%clk 00:01:56]} Kf6 {[%clk
00:03:36]} 30. Qf4+ {[%clk 00:02:17]} {[%emt 00:00:05]} Qxf4 {[%clk 00:04:02]}
31. gxf4 {[%clk 00:02:41]} Rb5 {[%clk 00:04:09]} {[%emt 00:00:21]} 32. Ra7
{[%clk 00:01:33]} {[%emt 00:01:35]} 1/2-1/2

[Event "Chess Festival Groningen 2023 | A"]
[Site "Groningen, Netherlands"]
[Date "2023.12.22"]
[Round "2.6"]
[White "Kollen, Zyon"]
[Black "Krasenkow, Michal"]
[Result "1/2-1/2"]
[TimeControl "90min/40moves + 30min + 30sec/move"]
[WhiteElo "2318"]
[BlackElo "2532"]

1. e4 {[%clk 01:30:55]} {[%emt 00:00:04]} d5 {[%clk 01:30:55]} {[%emt
00:00:07]} 2. exd5 {[%clk 01:30:49]} {[%emt 00:00:33]} Qxd5 {[%clk 01:31:18]}
{[%emt 00:00:07]} 3. Nc3 {[%clk 01:31:13]} {[%emt 00:00:05]} Qd6 {[%clk
01:31:44]} {[%emt 00:00:20]} 4. d4 {[%clk 01:31:22]} {[%emt 00:00:05]} Nf6
{[%clk 01:32:09]} {[%emt 00:00:05]} 5. Nf3 {[%clk 01:29:59]} {[%emt 00:01:53]}
c6 {[%clk 01:32:32]} {[%emt 00:00:08]} 6. Ne5 {[%clk 01:24:53]} {[%emt
00:05:36]} Be6 {[%clk 01:32:51]} {[%emt 00:00:12]} 7. Bf4 {[%clk 01:19:51]}
{[%emt 00:05:37]} Qd8 {[%clk 01:32:59]} {[%emt 00:00:15]} 8. Qd2 {[%clk
01:13:07]} {[%emt 00:07:14]} g6 {[%clk 01:32:16]} {[%emt 00:01:13]} 9. Be2
{[%clk 01:08:51]} {[%emt 00:04:46]} Nbd7 {[%clk 01:31:16]} {[%emt 00:01:34]} 10.
Bf3 {[%clk 01:03:14]} {[%emt 00:06:03]} Bg7 {[%clk 01:27:57]} {[%emt 00:03:50]}
11. O-O {[%clk 00:57:44]} {[%emt 00:05:58]} O-O {[%clk 01:27:20]} {[%emt
00:01:08]} 12. Rfe1 {[%clk 00:53:05]} {[%emt 00:05:08]} Re8 {[%clk 01:20:24]}
{[%emt 00:07:26]} 13. Rad1 {[%clk 00:50:20]} {[%emt 00:03:14]} Qa5 {[%clk
01:07:47]} {[%emt 00:13:06]} 14. a3 {[%clk 00:47:13]} {[%emt 00:03:39]} Rad8
{[%clk 01:05:59]} {[%emt 00:02:18]} 15. b4 {[%clk 00:43:32]} {[%emt 00:04:10]}
Qb6 {[%clk 01:03:27]} {[%emt 00:03:06]} 16. h4 {[%clk 00:33:12]} {[%emt
00:10:46]} Nxe5 {[%clk 00:55:05]} {[%emt 00:08:51]} 17. Bxe5 {[%clk 00:33:10]}
{[%emt 00:00:36]} Bd5 {[%clk 00:53:58]} {[%emt 00:01:33]} 18. Nxd5 {[%clk
00:24:00]} {[%emt 00:09:43]} cxd5 {[%clk 00:54:07]} {[%emt 00:00:18]} 19. h5
{[%clk 00:23:55]} {[%emt 00:00:36]} Qc6 {[%clk 00:48:03]} {[%emt 00:06:36]} 20.
c4 {[%clk 00:19:34]} {[%emt 00:08:16]} Qxc4 {[%clk 00:48:06]} 21. Rc1 {[%clk
00:19:56]} Qa6 {[%clk 00:48:10]} 22. h6 {[%clk 00:18:53]} Bh8 {[%clk 00:47:57]}
23. Rc7 {[%clk 00:18:24]} {[%emt 00:00:47]} Rc8 {[%clk 00:36:26]} {[%emt
00:12:02]} 24. Rec1 {[%clk 00:18:34]} {[%emt 00:00:20]} Rxc7 {[%clk 00:35:48]}
{[%emt 00:01:06]} 25. Rxc7 {[%clk 00:18:58]} {[%emt 00:00:07]} Qxa3 {[%clk
00:35:40]} {[%emt 00:00:38]} 26. Rxb7 {[%clk 00:15:28]} {[%emt 00:03:59]} Ne4
{[%clk 00:34:28]} {[%emt 00:01:43]} 27. Qf4 {[%clk 00:06:21]} {[%emt 00:09:37]}
Bxe5 {[%clk 00:32:39]} {[%emt 00:02:19]} 28. dxe5 {[%clk 00:06:41]} {[%emt
00:00:10]} Qa1+ {[%clk 00:11:53]} {[%emt 00:21:15]} 29. Kh2 {[%clk 00:07:10]}
Nxf2 {[%clk 00:09:34]} {[%emt 00:02:57]} 30. Bxd5 {[%clk 00:04:34]} {[%emt
00:03:01]} Ng4+ {[%clk 00:09:54]} {[%emt 00:00:08]} 31. Qxg4 {[%clk 00:01:05]}
{[%emt 00:04:05]} Qxe5+ {[%clk 00:10:20]} 32. Qg3 {[%clk 00:00:52]} {[%emt
00:00:42]} Qxd5 {[%emt 00:00:50]} 33. Rxe7 {[%clk 00:00:40]} {[%emt 00:00:43]}
Qh5+ {[%clk 00:02:43]} {[%emt 00:07:46]} 34. Kg1 {[%clk 00:01:09]} Qd1+ {[%clk
00:02:25]} {[%emt 00:00:48]} 35. Kh2 {[%clk 00:01:20]} {[%emt 00:00:18]} Qh5+
{[%emt 00:01:58]} 1/2-1/2

[Event "Chess Festival Groningen 2023 | A"]
[Site "Groningen, Netherlands"]
[Date "2023.12.22"]
[Round "2.7"]
[White "Beerdsen, Thomas"]
[Black "Slagboom, Leandro"]
[Result "1-0"]
[TimeControl "90min/40moves + 30min + 30sec/move"]
[WhiteElo "2511"]
[BlackElo "2304"]

1. e4 {[%clk 01:30:56]} {[%emt 00:00:15]} e6 {[%clk 01:30:55]} 2. d4 {[%clk
01:31:13]} {[%emt 00:00:06]} d5 {[%clk 01:31:19]} {[%emt 00:00:26]} 3. Nc3
{[%clk 01:31:07]} {[%emt 00:00:17]} Nf6 {[%clk 01:31:35]} {[%emt 00:00:15]} 4.
Bg5 {[%clk 01:30:48]} {[%emt 00:00:45]} h6 {[%clk 01:31:55]} {[%emt 00:00:43]}
5. Bxf6 {[%clk 01:31:02]} Qxf6 {[%clk 01:32:19]} 6. a3 {[%clk 01:31:04]} {[%emt
00:00:18]} c6 {[%clk 01:32:27]} {[%emt 00:00:37]} 7. Nf3 {[%clk 01:30:36]}
{[%emt 00:00:42]} Nd7 {[%clk 01:32:16]} {[%emt 00:00:41]} 8. Bd3 {[%clk
01:29:07]} {[%emt 00:01:58]} g5 {[%clk 01:31:32]} {[%emt 00:01:15]} 9. exd5
{[%clk 01:18:02]} {[%emt 00:11:41]} exd5 {[%clk 01:25:25]} {[%emt 00:06:31]} 10.
O-O {[%clk 01:17:04]} {[%emt 00:02:10]} Nb6 {[%clk 01:23:06]} {[%emt 00:02:07]}
11. Ne5 {[%clk 01:10:32]} {[%emt 00:07:01]} Be6 {[%clk 01:18:51]} {[%emt
00:04:49]} 12. f4 {[%clk 01:07:58]} {[%emt 00:03:08]} gxf4 {[%clk 01:14:50]}
{[%emt 00:04:23]} 13. Ne2 {[%clk 01:04:23]} {[%emt 00:04:04]} Bd6 {[%clk
01:10:38]} {[%emt 00:04:43]} 14. Nxf4 {[%clk 01:02:56]} {[%emt 00:01:57]} Bxe5
{[%clk 01:06:04]} {[%emt 00:05:32]} 15. Nxe6 {[%clk 00:57:25]} {[%emt
00:05:32]} Qxe6 {[%clk 00:48:44]} {[%emt 00:17:50]} 16. dxe5 {[%clk 00:56:04]}
{[%emt 00:01:53]} Nd7 {[%clk 00:47:39]} {[%emt 00:01:34]} 17. Bf5 {[%clk
00:52:54]} {[%emt 00:03:42]} Qe7 {[%clk 00:46:47]} {[%emt 00:01:21]} 18. Bxd7+
{[%clk 00:52:08]} {[%emt 00:01:41]} Kxd7 {[%clk 00:43:37]} {[%emt 00:03:14]} 19.
c4 {[%clk 00:50:25]} {[%emt 00:02:13]} Qc5+ {[%clk 00:30:01]} {[%emt 00:14:05]}
20. Kh1 {[%clk 00:49:50]} {[%emt 00:01:08]} Rhf8 {[%clk 00:28:32]} {[%emt
00:01:57]} 21. Rc1 {[%clk 00:43:10]} {[%emt 00:07:12]} d4 {[%clk 00:23:17]}
{[%emt 00:05:45]} 22. Rf5 {[%clk 00:43:22]} {[%emt 00:00:14]} Kc7 {[%clk
00:20:22]} {[%emt 00:03:26]} 23. b4 {[%clk 00:43:47]} {[%emt 00:00:15]} Qe7
{[%clk 00:20:23]} {[%emt 00:00:22]} 24. Qxd4 {[%clk 00:44:02]} {[%emt
00:00:15]} a5 {[%clk 00:13:41]} {[%emt 00:07:08]} 25. b5 {[%clk 00:40:22]}
{[%emt 00:04:12]} 1-0

[Event "Chess Festival Groningen 2023 | A"]
[Site "Groningen, Netherlands"]
[Date "2023.12.22"]
[Round "2.8"]
[White "Nevednichy, Vladislav"]
[Black "Jaiveer Mahendru"]
[Result "1-0"]
[TimeControl "90min/40moves + 30min + 30sec/move"]
[WhiteElo "2452"]
[BlackElo "2294"]

1. c4 {[%clk 01:30:52]} {[%emt 00:00:53]} e5 {[%clk 01:30:29]} 2. Nc3 {[%clk
01:30:37]} {[%emt 00:00:31]} Nf6 {[%clk 01:30:32]} {[%emt 00:00:49]} 3. Nf3
{[%clk 01:29:57]} {[%emt 00:00:51]} Nc6 {[%clk 01:30:44]} {[%emt 00:00:16]} 4.
g3 {[%clk 01:30:13]} {[%emt 00:00:26]} d5 {[%clk 01:30:11]} {[%emt 00:00:57]} 5.
cxd5 {[%clk 01:30:36]} {[%emt 00:00:05]} Nxd5 {[%clk 01:30:37]} {[%emt
00:00:15]} 6. Bg2 {[%clk 01:30:13]} {[%emt 00:00:37]} Nb6 {[%clk 01:31:01]}
{[%emt 00:00:33]} 7. O-O {[%clk 01:30:24]} {[%emt 00:00:08]} Be7 {[%clk
01:31:27]} 8. b3 {[%clk 01:22:30]} {[%emt 00:08:14]} O-O {[%clk 01:31:04]}
{[%emt 00:00:53]} 9. Bb2 {[%clk 01:22:54]} {[%emt 00:00:13]} Be6 {[%clk
01:30:41]} {[%emt 00:00:45]} 10. Rc1 {[%clk 01:21:50]} {[%emt 00:01:34]} f5
{[%clk 01:17:19]} {[%emt 00:13:51]} 11. d3 {[%clk 01:10:13]} {[%emt 00:12:07]}
Qd7 {[%clk 01:07:01]} {[%emt 00:10:52]} 12. Nd2 {[%clk 00:56:34]} {[%emt
00:14:05]} Bf6 {[%clk 00:59:55]} {[%emt 00:07:36]} 13. Nc4 {[%clk 00:54:00]}
{[%emt 00:03:03]} Nxc4 {[%clk 00:53:58]} {[%emt 00:06:28]} 14. bxc4 {[%clk
00:54:05]} {[%emt 00:00:27]} Ne7 {[%clk 00:48:29]} {[%emt 00:06:17]} 15. Na4
{[%clk 00:52:02]} {[%emt 00:02:13]} c6 {[%clk 00:48:54]} {[%emt 00:00:08]} 16.
Nc5 {[%clk 00:52:10]} {[%emt 00:00:28]} Qc8 {[%clk 00:49:18]} 17. e4 {[%clk
00:47:02]} {[%emt 00:05:35]} b6 {[%clk 00:43:35]} {[%emt 00:06:39]} 18. Nxe6
{[%clk 00:33:47]} {[%emt 00:13:19]} Qxe6 {[%clk 00:44:00]} {[%emt 00:00:17]} 19.
exf5 {[%clk 00:33:18]} {[%emt 00:00:54]} Qxf5 {[%clk 00:42:16]} {[%emt
00:02:06]} 20. Qe2 {[%clk 00:27:03]} {[%emt 00:06:47]} Rad8 {[%clk 00:41:52]}
{[%emt 00:00:53]} 21. Be4 {[%clk 00:27:14]} {[%emt 00:00:19]} Qd7 {[%clk
00:40:15]} {[%emt 00:02:07]} 22. Rfe1 {[%clk 00:20:41]} {[%emt 00:07:03]} c5
{[%clk 00:31:43]} {[%emt 00:09:02]} 23. Rcd1 {[%clk 00:16:05]} {[%emt
00:05:27]} Nf5 {[%clk 00:28:36]} {[%emt 00:03:15]} 24. Qg4 {[%clk 00:06:35]}
{[%emt 00:10:00]} Nd4 {[%clk 00:27:54]} {[%emt 00:01:51]} 25. Bd5+ {[%clk
00:06:54]} Kh8 {[%clk 00:28:15]} 26. Qxd7 {[%clk 00:07:15]} Rxd7 {[%clk
00:28:41]} {[%emt 00:00:05]} 27. Bxd4 {[%clk 00:05:26]} {[%emt 00:02:14]} exd4
{[%clk 00:24:08]} {[%emt 00:05:11]} 28. h4 {[%clk 00:05:16]} g6 {[%clk
00:23:03]} {[%emt 00:02:22]} 29. Re4 {[%clk 00:05:08]} Kg7 {[%clk 00:23:03]} 30.
Be6 {[%clk 00:05:08]} Re7 {[%clk 00:23:03]} 31. Rde1 {[%clk 00:05:08]} h6
{[%clk 00:23:03]} 32. Kg2 {[%clk 00:05:08]} Rd8 {[%clk 00:23:03]} 33. a4 {[%emt
00:26:08]} Rde8 {[%clk 00:03:31]} 34. Bd5 {[%clk 00:01:41]} {[%emt 00:02:06]}
Kf8 {[%clk 00:02:32]} {[%emt 00:01:29]} 35. Kh3 {[%clk 00:01:23]} {[%emt
00:00:48]} Re5 {[%clk 00:01:36]} {[%emt 00:01:31]} 36. f4 {[%emt 00:01:12]}
R5e7 {[%clk 00:01:16]} {[%emt 00:00:33]} 37. Kg4 {[%clk 00:00:56]} Rxe4 {[%clk
00:01:16]} 38. dxe4 {[%clk 00:00:56]} h5+ {[%clk 00:01:16]} 39. Kf3 {[%clk
00:00:56]} Kg7 {[%clk 00:01:16]} 40. e5 {[%clk 00:00:56]} Bd8 {[%clk 00:01:16]}
41. Rg1 {[%clk 00:00:56]} Rf8 {[%clk 00:01:16]} 42. Ke4 {[%clk 00:00:56]} Be7
{[%clk 00:01:16]} 43. Be6 {[%clk 00:00:56]} Bd8 {[%clk 00:29:58]} {[%emt
00:05:12]} 44. Bd5 {[%clk 00:32:15]} {[%emt 00:00:17]} Be7 {[%clk 00:29:43]}
{[%emt 00:01:05]} 45. Be6 {[%clk 00:30:36]} {[%emt 00:01:46]} Rd8 {[%clk
00:22:20]} {[%emt 00:08:32]} 46. Rb1 {[%clk 00:30:45]} {[%emt 00:00:13]} Kf8
{[%clk 00:19:29]} {[%emt 00:02:58]} 47. Bd5 {[%clk 00:30:49]} {[%emt 00:00:25]}
Kg7 {[%clk 00:19:07]} {[%emt 00:00:45]} 48. Kd3 {[%clk 00:31:00]} {[%emt
00:00:41]} Rf8 {[%clk 00:19:24]} {[%emt 00:00:09]} 49. a5 {[%clk 00:30:22]}
{[%emt 00:00:51]} Rb8 {[%clk 00:17:04]} {[%emt 00:02:52]} 50. a6 {[%clk
00:30:30]} {[%emt 00:00:19]} Rd8 {[%clk 00:17:00]} {[%emt 00:00:35]} 51. Be4
{[%clk 00:30:25]} {[%emt 00:00:35]} Rd7 {[%clk 00:17:09]} {[%emt 00:00:39]} 52.
Rg1 {[%clk 00:30:05]} {[%emt 00:00:31]} Kf7 {[%clk 00:15:15]} {[%emt 00:02:23]}
53. g4 {[%clk 00:29:16]} {[%emt 00:01:23]} Bxh4 {[%clk 00:15:30]} {[%emt
00:00:41]} 54. gxh5 {[%clk 00:27:45]} {[%emt 00:01:54]} gxh5 {[%clk 00:15:53]}
{[%emt 00:00:14]} 55. f5 {[%clk 00:26:56]} {[%emt 00:00:51]} Re7 {[%clk
00:13:52]} {[%emt 00:02:30]} 56. Bd5+ {[%clk 00:27:04]} {[%emt 00:00:35]} Ke8
{[%clk 00:14:18]} 57. Rg8+ {[%clk 00:24:37]} {[%emt 00:02:48]} Kd7 {[%clk
00:14:47]} {[%emt 00:00:20]} 58. Be6+ {[%clk 00:24:48]} {[%emt 00:00:10]} Kc6
{[%clk 00:14:59]} {[%emt 00:00:11]} 59. Rc8+ {[%clk 00:25:00]} {[%emt
00:00:18]} Rc7 {[%clk 00:15:25]} {[%emt 00:00:05]} 60. Bd5+ {[%clk 00:25:08]}
{[%emt 00:00:20]} Kd7 {[%clk 00:15:51]} {[%emt 00:00:05]} 61. Rh8 {[%clk
00:25:22]} {[%emt 00:00:15]} Bg3 {[%clk 00:15:57]} {[%emt 00:00:24]} 62. Ke4
{[%clk 00:23:17]} {[%emt 00:02:34]} d3 {[%clk 00:15:19]} {[%emt 00:01:07]} 63.
f6 {[%clk 00:23:35]} {[%emt 00:00:12]} 1-0

[Event "Chess Festival Groningen 2023 | A"]
[Site "Groningen, Netherlands"]
[Date "2023.12.22"]
[Round "2.9"]
[White "Kanyamarala, Tarun"]
[Black "Bulmaga, Irina"]
[Result "0-1"]
[TimeControl "90min/40moves + 30min + 30sec/move"]
[WhiteElo "2305"]
[BlackElo "2439"]

1. d4 {[%clk 01:30:52]} {[%emt 00:00:30]} Nf6 {[%clk 01:30:52]} {[%emt
00:00:10]} 2. c4 {[%clk 01:31:12]} e6 {[%clk 01:31:16]} {[%emt 00:00:15]} 3. g3
{[%clk 01:31:34]} d5 {[%clk 01:31:32]} 4. Bg2 {[%clk 01:31:53]} {[%emt
00:00:19]} Be7 {[%clk 01:31:47]} {[%emt 00:00:06]} 5. Nf3 {[%clk 01:32:14]}
{[%emt 00:00:14]} O-O {[%clk 01:32:08]} {[%emt 00:00:05]} 6. O-O {[%clk
01:32:28]} {[%emt 00:00:43]} dxc4 {[%clk 01:32:29]} 7. Qc2 {[%clk 01:32:47]}
{[%emt 00:00:05]} a6 {[%clk 01:32:39]} {[%emt 00:00:07]} 8. a4 {[%clk
01:33:06]} {[%emt 00:00:34]} Bd7 {[%clk 01:32:48]} {[%emt 00:00:04]} 9. Qxc4
{[%clk 01:33:23]} {[%emt 00:00:06]} Bc6 {[%clk 01:33:11]} {[%emt 00:00:31]} 10.
Bg5 {[%clk 01:33:41]} {[%emt 00:00:10]} Nbd7 {[%clk 01:32:38]} {[%emt
00:00:41]} 11. Nc3 {[%clk 01:33:33]} {[%emt 00:00:59]} h6 {[%clk 01:31:13]}
{[%emt 00:01:35]} 12. Bxf6 {[%clk 01:31:26]} {[%emt 00:02:35]} Nxf6 {[%clk
01:31:28]} {[%emt 00:00:18]} 13. a5 {[%clk 01:31:25]} {[%emt 00:01:06]} Bd5
{[%clk 01:18:24]} {[%emt 00:13:00]} 14. Qd3 {[%clk 01:25:32]} {[%emt 00:06:21]}
Bxf3 {[%clk 01:14:20]} {[%emt 00:04:34]} 15. Bxf3 {[%clk 01:25:44]} {[%emt
00:00:21]} c6 {[%clk 01:13:32]} {[%emt 00:01:16]} 16. Qc4 {[%clk 01:22:34]}
{[%emt 00:04:09]} Qd6 {[%clk 01:10:56]} {[%emt 00:02:37]} 17. Ra4 {[%clk
01:19:24]} {[%emt 00:03:42]} Rad8 {[%clk 01:01:08]} {[%emt 00:10:18]} 18. Rd1
{[%clk 01:17:57]} {[%emt 00:01:54]} Qb8 {[%clk 00:58:30]} {[%emt 00:03:29]} 19.
e3 {[%clk 01:13:09]} {[%emt 00:05:05]} Nd5 {[%clk 00:51:44]} {[%emt 00:07:09]}
20. Qb3 {[%clk 01:09:49]} {[%emt 00:03:52]} Nf6 {[%clk 00:43:18]} {[%emt
00:08:53]} 21. Raa1 {[%clk 01:03:22]} {[%emt 00:07:18]} Bd6 {[%clk 00:41:32]}
{[%emt 00:01:58]} 22. Kg2 {[%clk 00:56:37]} {[%emt 00:07:11]} Rfe8 {[%clk
00:39:23]} {[%emt 00:02:40]} 23. Ra4 {[%clk 00:48:33]} {[%emt 00:08:33]} Qc7
{[%clk 00:36:14]} {[%emt 00:03:39]} 24. h4 {[%clk 00:47:57]} {[%emt 00:01:06]}
g6 {[%clk 00:24:05]} {[%emt 00:13:01]} 25. Qc2 {[%clk 00:36:47]} {[%emt
00:11:19]} Kg7 {[%clk 00:23:32]} {[%emt 00:01:02]} 26. Qb1 {[%clk 00:31:56]}
{[%emt 00:05:20]} Qe7 {[%clk 00:20:08]} {[%emt 00:03:58]} 27. Qa2 {[%clk
00:23:16]} {[%emt 00:09:29]} g5 {[%clk 00:17:03]} {[%emt 00:03:12]} 28. hxg5
{[%clk 00:21:26]} {[%emt 00:02:19]} hxg5 {[%clk 00:17:31]} {[%emt 00:00:36]} 29.
Rh1 {[%clk 00:14:10]} {[%emt 00:07:23]} Rh8 {[%clk 00:17:13]} {[%emt 00:00:37]}
30. Rxh8 {[%clk 00:11:32]} {[%emt 00:03:26]} Rxh8 {[%clk 00:17:40]} 31. Qc4
{[%clk 00:10:37]} {[%emt 00:01:11]} Nd5 {[%clk 00:09:43]} {[%emt 00:08:49]} 32.
Ne4 {[%clk 00:03:34]} {[%emt 00:07:11]} Bc7 {[%clk 00:06:26]} {[%emt 00:03:49]}
33. Qc5 {[%clk 00:03:13]} {[%emt 00:00:51]} g4 {[%clk 00:05:56]} {[%emt
00:00:59]} 34. Be2 {[%clk 00:01:20]} {[%emt 00:02:23]} Qd8 {[%clk 00:06:11]}
{[%emt 00:00:24]} 35. Qc1 {[%clk 00:00:48]} {[%emt 00:01:08]} Bxa5 {[%clk
00:04:41]} {[%emt 00:02:06]} 36. Nc5 {[%clk 00:00:34]} {[%emt 00:00:23]} b6
{[%clk 00:03:49]} {[%emt 00:01:41]} 37. Nd3 {[%clk 00:00:32]} {[%emt 00:00:12]}
Qg5 {[%clk 00:03:15]} {[%emt 00:01:04]} 38. Qd1 {[%clk 00:00:32]} {[%emt
00:00:30]} Nxe3+ {[%clk 00:02:58]} {[%emt 00:00:48]} 39. fxe3 {[%clk 00:00:40]}
{[%emt 00:00:27]} Qd5+ {[%clk 00:03:25]} 40. Kf2 {[%clk 00:00:34]} {[%emt
00:00:35]} Rh2+ {[%clk 00:03:44]} {[%emt 00:00:11]} 0-1

[Event "Chess Festival Groningen 2023 | A"]
[Site "Groningen, Netherlands"]
[Date "2023.12.22"]
[Round "2.10"]
[White "De Jong, Migchiel"]
[Black "De Winter, Arthur"]
[Result "0-1"]
[TimeControl "90min/40moves + 30min + 30sec/move"]
[WhiteElo "2301"]
[BlackElo "2405"]

1. e4 {[%clk 01:30:50]} {[%emt 00:00:29]} c5 {[%clk 01:30:53]} 2. Nf3 {[%clk
01:31:15]} {[%emt 00:00:07]} d6 {[%clk 01:31:16]} 3. c3 {[%clk 01:30:47]}
{[%emt 00:00:50]} Nf6 {[%clk 01:31:39]} {[%emt 00:00:07]} 4. h3 {[%clk
01:31:00]} {[%emt 00:00:18]} Nc6 {[%clk 01:31:16]} {[%emt 00:00:51]} 5. Bd3
{[%clk 01:31:23]} {[%emt 00:00:37]} e5 {[%clk 01:30:12]} {[%emt 00:01:07]} 6.
O-O {[%clk 01:31:10]} {[%emt 00:00:38]} g5 {[%clk 01:30:07]} {[%emt 00:00:36]}
7. Nh2 {[%clk 01:24:41]} {[%emt 00:07:01]} Rg8 {[%clk 01:20:06]} {[%emt
00:10:29]} 8. Ng4 {[%clk 01:19:09]} {[%emt 00:06:02]} h5 {[%clk 01:15:54]}
{[%emt 00:04:42]} 9. Ne3 {[%clk 01:19:13]} {[%emt 00:00:26]} Be6 {[%clk
01:14:32]} {[%emt 00:01:51]} 10. Bc4 {[%clk 01:10:38]} {[%emt 00:09:06]} Bxc4
{[%clk 01:06:20]} {[%emt 00:08:41]} 11. Nxc4 {[%clk 01:11:01]} {[%emt
00:00:31]} g4 {[%clk 01:01:28]} {[%emt 00:04:58]} 12. hxg4 {[%clk 01:08:14]}
{[%emt 00:03:17]} Nxg4 {[%clk 00:53:06]} {[%emt 00:08:52]} 13. f3 {[%clk
01:03:23]} {[%emt 00:05:00]} Nf6 {[%clk 00:51:45]} 14. d4 {[%clk 01:03:23]}
cxd4 {[%emt 00:09:36]} 15. cxd4 {[%emt 00:06:34]} Nxd4 {[%emt 00:00:32]} 16.
Be3 {[%emt 00:03:56]} Rc8 {[%clk 00:35:33]} {[%emt 00:01:25]} 17. Nba3 {[%clk
01:01:39]} {[%emt 00:01:34]} b5 {[%clk 00:34:17]} {[%emt 00:01:47]} 18. Nd2
{[%clk 00:59:11]} {[%emt 00:05:50]} d5 19. Bxd4 {[%emt 00:05:06]} exd4 {[%clk
00:26:50]} {[%emt 00:01:03]} 20. e5 {[%emt 00:02:31]} Nd7 {[%emt 00:01:18]} 21.
Nxb5 {[%emt 00:01:13]} Qb6 {[%clk 00:14:34]} {[%emt 00:10:34]} 22. Nd6+ {[%clk
00:57:40]} Bxd6 {[%clk 00:14:59]} {[%emt 00:00:49]} 23. exd6 {[%clk 00:58:01]}
Rg6 {[%clk 00:13:54]} {[%emt 00:01:37]} 24. Nb3 {[%clk 00:46:26]} d3+ {[%clk
00:13:27]} {[%emt 00:13:02]} 25. Kh1 {[%clk 00:45:57]} Rc2 {[%clk 00:11:49]}
{[%emt 00:03:25]} 26. Qe1+ {[%clk 00:46:01]} Re2 {[%clk 00:11:49]} 27. Rc1
{[%clk 00:46:01]} Qd8 {[%clk 00:11:49]} 28. Qb4 {[%clk 00:46:01]} Rgxg2 {[%clk
00:11:49]} 29. Qf4 {[%clk 00:46:01]} Ne5 {[%clk 00:11:49]} 30. Rfe1 {[%clk
00:46:01]} Rh2+ {[%clk 00:11:49]} 31. Qxh2 {[%clk 00:46:01]} Rxh2+ {[%clk
00:11:49]} 32. Kxh2 {[%clk 00:46:01]} Qh4+ {[%clk 00:11:49]} 33. Kg2 {[%clk
00:46:01]} Qf4 {[%clk 00:11:49]} 34. Rc7 {[%clk 00:46:01]} Qxf3+ {[%clk
00:11:49]} 35. Kg1 {[%clk 00:46:01]} Qg3+ {[%clk 00:11:49]} 36. Kf1 {[%clk
00:46:01]} Qf4+ {[%clk 00:11:49]} 37. Kg1 {[%clk 00:46:01]} Kd8 {[%clk
00:11:49]} 38. Nd2 {[%clk 00:46:01]} Ng4 {[%clk 00:11:49]} 0-1